bitfinex/quotes_ETHUSD_20241123
["timestamp","ask_amount","ask_price","bid_price","bid_amount"]
[1732375995755,0.7766,3467.7,3466.4,0.34205288]
[1732375995961,0.7766,3467.7,3466.6,0.55]
[1732375996203,0.8098,3468.1,3466.8,0.55]
[1732375996388,0.7766,3468.2,3466.9,0.34121441]
[1732375996594,0.7766,3468.2,3467.0,0.89121441]
[1732375996817,0.7766,3468.2,3467.2,0.55]
[1732375996982,0.7766,3468.2,3467.3,0.34121441]
[1732375997286,0.9693615,3468.2,3467.4,0.34121441]
[1732375997482,0.7766,3468.6,3467.6,0.55]
[1732375997678,0.7766,3468.6,3467.7,0.34121441]
[1732375997881,1.5864,3468.6,3467.8,0.34121441]
[1732375998120,1.5864,3468.6,3467.9,0.34121441]
[1732375998425,1.5864,3468.6,3468.0,0.34121441]
[1732375998597,1.5864,3468.6,3468.1,0.34121441]
[1732375998793,1.5864,3468.6,3468.2,0.34121441]
[1732375999007,1.5864,3468.6,3468.3,0.34121441]
[1732375999223,0.7766,3469.0,3468.4,0.34121441]
[1732375999412,0.55,3469.0,3468.5,0.34121441]
[1732375999723,0.55,3469.0,3468.6,0.34121441]
[1732375999934,0.7766,3469.4,3468.7,0.34121441]
[1732376000132,0.8098,3469.3,3468.8,0.34121441]
[1732376000343,0.96844,3469.3,3468.9,0.34121441]
[1732376000499,0.96844,3469.3,3469.0,0.34121441]
[1732376000695,0.8098,3469.3,3469.1,0.34121441]
[1732376000922,0.8098,3469.3,3469.2,0.34121441]
[1732376001120,0.96844,3469.3,3469.2,0.34121441]
[1732376003111,0.96844,3469.3,3468.3,0.8098]
[1732376003405,0.8098,3469.3,3468.4,0.341317]
[1732376003609,0.8098,3469.3,3468.5,0.341317]
[1732376003942,0.8098,3469.3,3468.6,0.341317]
[1732376004148,0.8098,3469.3,3467.8,0.8098]
[1732376004149,0.15864,3469.2,3468.7,0.341317]
[1732376004434,0.7938,3469.1,3468.8,0.341317]
[1732376004599,0.176224,3469.0,3468.9,0.341317]
[1732376005003,0.176224,3469.0,3467.6,0.03068118]
[1732376005203,0.176224,3469.0,3467.5,0.7807]
[1732376005643,0.7938,3468.9,3467.5,0.7807]
[1732376005847,0.7938,3468.9,3467.1,0.7807]
[1732376006313,0.7938,3468.9,3466.0,0.02884164]
[1732376006314,0.7938,3468.8,3466.1,0.7807]
[1732376006635,0.7938,3468.7,3466.1,0.7807]
[1732376008414,0.7938,3468.7,3466.2,0.02884588]
[1732376008617,0.7938,3468.7,3466.2,0.55]
[1732376010340,0.7938,3468.7,3466.1,0.7807]
[1732376010341,0.7873,3468.4,3465.5,0.7838]
[1732376010549,0.55,3468.1,3465.5,0.7838]
[1732376010706,0.7873,3468.0,3465.5,0.7838]
[1732376011603,0.7873,3468.0,3465.6,0.55]
[1732376013012,0.7873,3467.9,3465.6,0.55]
[1732376014608,0.7873,3467.9,3465.7,0.7838]
[1732376014820,0.7873,3467.9,3466.1,0.55]
[1732376015024,0.7873,3467.9,3466.3,0.55]
[1732376015224,0.7873,3467.9,3466.5,0.55]
[1732376016053,0.7873,3467.9,3466.7,0.55]
[1732376016248,0.7873,3468.4,3467.1,0.55]
[1732376021574,0.7873,3468.4,3465.7,0.7838]
[1732376021736,0.14790518,3468.3,3466.1,0.55]
[1732376021925,0.14790518,3468.3,3466.3,0.55]
[1732376022125,0.7873,3468.1,3466.2,0.7838]
[1732376023869,0.7873,3468.1,3466.3,0.55]
[1732376024032,1.49086284,3468.1,3466.3,0.55]
[1732376025971,0.7563,3468.0,3466.3,0.55]
[1732376026151,0.90228628,3467.9,3466.3,0.55]
[1732376026327,0.7563,3467.9,3466.3,0.55]
[1732376027170,0.7563,3467.9,3465.8,0.2871]
[1732376028474,0.7563,3467.9,3464.6,0.01809868]
[1732376028475,0.7563,3467.9,3465.4,0.7623]
[1732376028776,0.7563,3467.7,3465.4,0.7623]
[1732376029637,9.6263,3467.7,3464.8,0.8084]
[1732376029854,0.7977,3467.5,3464.9,0.02885495]
[1732376030180,0.79517747,3467.5,3465.0,0.55]
[1732376030364,0.79517747,3467.5,3465.4,0.8084]
[1732376030676,0.79517747,3467.5,3465.5,0.55]
[1732376033187,0.79517747,3467.5,3465.7,0.55]
[1732376033356,0.79517747,3467.5,3465.9,0.8084]
[1732376033687,0.79517747,3467.5,3466.0,0.55]
[1732376033867,0.79517747,3467.5,3466.2,0.55]
[1732376034068,0.79517747,3467.5,3466.5,0.8084]
[1732376034268,0.79517747,3467.5,3466.6,0.57884213]
[1732376034894,0.7977,3467.9,3466.6,0.55]
[1732376036191,0.7977,3467.9,3466.7,0.02883979]
[1732376036373,0.7977,3469.2,3466.9,0.55]
[1732376036581,0.7977,3469.0,3466.9,0.57883658]
[1732376037249,0.7977,3469.0,3467.3,0.55]
[1732376037487,0.7977,3469.0,3467.6,0.55]
[1732376038849,0.95845,3469.0,3467.6,0.55]
[1732376039303,0.95845,3469.0,3467.0,0.8084]
[1732376040660,1.65886105,3469.0,3467.1,0.55]
[1732376040884,0.7977,3469.0,3467.1,0.57883721]
[1732376041279,0.7977,3469.0,3467.2,0.8084]
[1732376041452,0.7977,3469.0,3467.3,0.55]
[1732376042098,0.7977,3469.0,3467.6,0.55]
[1732376043247,0.7977,3469.0,3467.7,0.02883323]
[1732376043448,0.7977,3469.0,3467.6,0.55]
[1732376044904,0.7977,3469.0,3467.7,0.02883148]
[1732376045410,0.7977,3469.0,3467.6,0.55]
[1732376045788,0.95845,3469.0,3467.6,0.55]
[1732376046175,0.534567,3469.0,3467.6,0.55]
[1732376046399,0.16075,3469.0,3467.6,0.55]
[1732376046595,0.8084,3469.6,3467.6,0.55]
[1732376047519,0.55,3470.3,3467.6,0.55]
[1732376047809,3.0,3470.2,3467.6,0.55]
[1732376048712,3.0,3470.2,3467.8,0.55]
[1732376048892,3.0,3470.2,3468.0,0.55]
[1732376049423,0.7681,3470.1,3468.0,0.55]
[1732376052626,0.7681,3470.1,3467.7,0.8371]
[1732376052833,0.7681,3469.9,3467.7,0.8371]
[1732376053222,0.7681,3469.9,3467.6,0.7508]
[1732376053456,0.7681,3470.0,3467.6,0.7508]
[1732376053623,0.7681,3469.8,3467.6,0.7508]
[1732376053826,0.7681,3469.7,3467.6,0.7508]
[1732376055359,0.7928,3469.6,3467.6,0.7508]
[1732376055861,0.7928,3469.4,3467.6,0.7508]
[1732376056191,0.7928,3469.2,3467.6,0.7508]
[1732376056360,0.7928,3469.2,3466.9,0.8371]
[1732376056861,0.7928,3469.0,3466.9,0.8371]
[1732376057158,0.7928,3469.0,3467.0,0.16352]
[1732376057519,0.7928,3469.0,3467.1,0.7981]
[1732376059051,0.7928,3468.8,3467.0,0.16352]
[1732376059225,0.7928,3468.8,3466.7,0.7981]
[1732376060467,3.55,3469.3,3466.7,0.7981]
[1732376060662,0.55,3468.8,3466.7,0.7981]
[1732376060867,0.55,3468.6,3466.7,0.7981]
[1732376061065,0.7928,3468.9,3466.7,0.7981]
[1732376061279,0.55,3468.8,3466.7,0.7981]
[1732376061433,0.7928,3468.7,3466.7,0.7981]
[1732376063133,0.7928,3468.7,3467.0,0.55]
[1732376063372,0.7928,3468.7,3467.1,0.7981]
[1732376063743,0.7928,3469.1,3467.3,0.7981]
[1732376063948,1.43304143,3470.2,3467.6,0.55]
[1732376064245,0.8204,3469.9,3467.8,0.8011]
[1732376064664,0.8204,3469.9,3468.0,0.8011]
[1732376066638,1.53030899,3469.9,3468.0,0.8011]
[1732376066836,0.1530309,3469.8,3468.0,0.8011]
[1732376067437,0.7706,3469.8,3468.0,0.8011]
[1732376073686,0.55,3469.7,3468.0,0.8011]
[1732376075139,0.7706,3469.8,3468.2,0.8195]
[1732376075340,0.7706,3469.8,3468.3,0.34361133]
[1732376075587,0.1480509,3469.7,3468.5,0.8195]
[1732376075749,0.7706,3469.8,3468.6,0.34361133]
[1732376076082,2.20964143,3470.2,3468.8,0.8195]
[1732376076267,1.43304143,3470.2,3469.0,0.8195]
[1732376076476,8.87,3471.3,3467.7,0.2871]
[1732376076477,1.44710959,3470.4,3469.1,0.34361133]
[1732376076651,1.71802323,3470.3,3469.2,1.16311133]
[1732376076859,1.71802323,3470.3,3467.8,0.02882517]
[1732376076860,1.44014351,3471.0,3469.4,0.8195]
[1732376077154,1.44014351,3471.0,3467.8,0.41592517]
[1732376077155,1.46868994,3470.6,3469.5,0.34361133]
[1732376077353,0.7766,3471.1,3469.6,1.16311133]
[1732376077354,1.44014351,3471.0,3469.6,1.16311133]
[1732376077556,1.44014351,3471.0,3469.7,0.34361133]
[1732376077772,1.48170603,3470.8,3469.8,0.34361133]
[1732376077945,1.48170603,3470.8,3469.9,0.34361133]
[1732376078147,1.48170603,3470.8,3470.0,4.9e-07]
[1732376078369,1.46868994,3470.6,3469.6,0.8195]
[1732376078573,1.48170603,3470.8,3469.6,0.8195]
[1732376082273,1.6480083,3470.9,3469.6,0.8195]
[1732376082469,1.43545695,3471.1,3469.6,0.8195]
[1732376082870,1.48735682,3471.3,3469.6,0.8195]
[1732376083107,1.43545695,3471.1,3469.6,0.8195]
[1732376083410,1.48735682,3471.3,3469.6,0.8195]
[1732376083713,4.48735682,3471.3,3469.6,0.8195]
[1732376084073,4.48735682,3471.3,3469.8,0.8055]
[1732376085513,4.48735682,3471.3,3469.9,0.21372657]
[1732376085683,4.48735682,3471.3,3470.0,0.21372657]
[1732376085865,1.43545695,3471.1,3470.1,1.01922657]
[1732376086083,1.45911937,3471.2,3470.1,0.8055]
[1732376086307,1.45911937,3471.2,3470.2,0.2137283]
[1732376086492,1.44014351,3471.0,3470.3,0.2137283]
[1732376086701,1.44014351,3471.0,3470.4,2.3e-07]
[1732376086895,0.2032958,3470.9,3470.1,0.8055]
[1732376091569,3.2032958,3470.9,3470.1,0.8055]
[1732376091972,0.2032958,3470.9,3470.1,0.8055]
[1732376092568,0.7539,3470.8,3470.1,0.8055]
[1732376092777,0.23973393,3470.7,3470.1,0.8055]
[1732376093079,0.23973393,3470.7,3468.6,0.7676]
[1732376093294,0.23973393,3470.7,3468.1,0.1]
[1732376093295,0.23973393,3470.7,3468.8,0.7676]
[1732376093495,0.41969297,3470.6,3468.8,0.7676]
[1732376093708,0.41969297,3470.6,3468.9,0.7676]
[1732376094428,0.41969297,3470.6,3469.7,0.7676]
[1732376094630,1.44014351,3471.0,3469.7,0.92436]
[1732376094831,1.44014351,3471.0,3469.7,0.7676]
[1732376098787,1.44014351,3471.0,3469.8,0.21440995]
[1732376098987,1.44014351,3471.0,3470.0,0.7676]
[1732376099222,2.12186447,3471.1,3470.1,0.21440995]
[1732376099423,3.44403075,3471.0,3470.2,0.98200995]
[1732376099594,0.38039574,3471.0,3470.3,0.21440995]
[1732376099799,0.38039574,3471.0,3470.4,0.21440995]
[1732376100137,0.38039574,3471.0,3470.5,7e-08]
[1732376100423,0.38039574,3471.0,3470.2,0.7676]
[1732376101314,1.43891635,3471.4,3470.2,0.7676]
[1732376101509,1.45911937,3471.2,3470.2,0.7676]
[1732376101713,3.0,3471.8,3470.2,0.7676]
[1732376101714,1.44551522,3471.5,3470.2,0.7676]
[1732376102010,1.48735682,3471.3,3470.2,0.7676]
[1732376102728,1.43724586,3471.7,3470.2,0.7676]
[1732376103058,1.47923428,3472.3,3470.4,0.7676]
[1732376103852,1.47923428,3472.3,3470.5,0.7676]
[1732376104155,1.45869064,3472.1,3470.5,0.7676]
[1732376104365,1.47923428,3472.3,3470.5,0.7676]
[1732376108571,0.55,3472.3,3470.5,0.7676]
[1732376108910,3.55,3472.3,3470.5,0.7676]
[1732376111537,5.02923428,3472.3,3470.5,0.7676]
[1732376112134,5.02923428,3472.3,3470.7,0.7889]
[1732376112370,5.02923428,3472.3,3470.8,0.21463447]
[1732376112576,5.02923428,3472.3,3471.0,0.7889]
[1732376112777,5.02923428,3472.3,3471.1,0.21463447]
[1732376112778,0.59365023,3472.2,3471.1,0.21463447]
[1732376112961,0.36475598,3472.1,3471.2,1.00353447]
[1732376113269,5.02923428,3472.3,3471.3,0.21463447]
[1732376113472,5.02923428,3472.3,3471.2,0.7889]
[1732376113473,5.02923428,3472.3,3471.4,0.21463447]
[1732376113676,5.02923428,3472.3,3471.5,0.21463447]
[1732376113878,0.59365023,3472.2,3471.6,0.21463447]
[1732376114045,0.59365023,3472.2,3471.7,0.21463447]
[1732376114250,0.36475598,3472.1,3471.8,3.7e-07]
[1732376114464,0.36475598,3472.1,3471.2,0.7889]
[1732376114769,0.53939903,3472.0,3471.2,0.7889]
[1732376118085,0.55,3471.9,3471.2,0.7889]
[1732376118581,3.55,3471.9,3471.2,0.7889]
[1732376118739,1.45869064,3472.1,3471.2,0.7889]
[1732376118941,0.14586906,3472.0,3471.2,0.7889]
[1732376121453,1.3165,3471.9,3470.0,0.7889]
[1732376122547,0.55,3471.7,3470.0,0.7889]
[1732376122748,0.7665,3471.4,3470.0,0.7889]
[1732376122949,0.55,3471.3,3470.0,0.7889]
[1732376125423,1.99600968,3471.6,3470.0,0.7889]
[1732376125700,0.8119,3471.4,3470.0,0.7889]
[1732376125867,0.55,3471.3,3470.0,0.7889]
[1732376128503,0.8119,3471.4,3470.0,0.7889]
[1732376129005,0.69799967,3471.4,3470.0,0.7889]
[1732376129311,0.51307094,3471.3,3470.0,0.7889]
[1732376130274,2.12875358,3471.6,3469.8,0.8211]
[1732376130476,0.6960439,3471.6,3469.8,0.8211]
[1732376130804,1.45869064,3472.1,3470.0,0.8211]
[1732376131926,0.55,3472.1,3470.0,0.8211]
[1732376132097,1.47822077,3472.0,3470.0,0.8211]
[1732376132697,1.45869064,3472.1,3470.0,0.8211]
[1732376132902,1.45869064,3472.1,3470.2,0.8211]
[1732376133822,1.45869064,3472.1,3470.3,0.8211]
[1732376134010,1.45869064,3472.1,3470.5,0.8211]
[1732376134180,1.44565747,3471.9,3470.5,0.8211]
[1732376134384,1.45869064,3472.1,3470.5,0.8211]
[1732376134589,1.42922552,3472.4,3470.5,0.8211]
[1732376134812,0.31618935,3472.3,3470.5,0.8211]
[1732376137726,0.55,3472.2,3470.5,0.8211]
[1732376143813,0.55,3472.2,3470.6,0.8211]
[1732376146427,0.7885,3472.1,3470.6,0.8211]
[1732376146655,0.55,3471.9,3470.6,0.8211]
[1732376146851,0.16546893,3472.0,3470.6,0.8211]
[1732376147052,0.55,3471.9,3470.6,0.8211]
[1732376148749,0.16546893,3472.0,3470.6,0.8211]
[1732376150179,0.87692929,3472.0,3470.6,0.8211]
[1732376150387,0.16654293,3471.9,3470.6,0.8211]
[1732376150768,0.55,3472.0,3470.6,0.8211]
[1732376151282,0.7885,3472.1,3470.6,0.8211]
[1732376151487,1.49744092,3472.1,3470.6,0.8211]
[1732376152752,0.55,3472.0,3470.6,0.8211]
[1732376153066,0.55,3471.8,3470.6,0.8211]
[1732376154101,0.55,3471.6,3470.6,0.8211]
[1732376154462,0.8286,3471.5,3469.6,0.8]
[1732376154655,0.55,3471.4,3469.6,0.8]
[1732376155661,0.8286,3471.3,3469.6,0.8]
[1732376155999,0.55,3471.2,3469.6,0.8]
[1732376156755,0.55,3471.0,3469.6,0.8]
[1732376157593,0.55,3471.0,3469.7,0.8004]
[1732376157907,0.55,3471.1,3469.7,0.8004]
[1732376158061,0.55,3470.9,3469.7,0.8004]
[1732376158264,0.55,3470.7,3469.7,0.01362576]
[1732376158575,0.55,3470.7,3469.6,0.8]
[1732376159101,0.55,3470.3,3469.6,0.8]
[1732376160969,0.55,3470.3,3467.2,0.57882669]
[1732376161174,0.55,3470.1,3467.2,0.02882669]
[1732376161403,0.20694959,3470.0,3467.6,0.55]
[1732376161605,0.20694959,3470.0,3467.8,0.55]
[1732376161766,0.20694959,3470.0,3467.8,0.8004]
[1732376162297,0.20694959,3470.0,3468.0,0.8004]
[1732376162597,0.15855496,3469.9,3468.0,0.8004]
[1732376163399,1.2624864,3470.1,3467.4,0.55]
[1732376163400,1.2624864,3470.1,3468.2,0.8004]
[1732376163610,1.2624864,3470.1,3468.4,0.8004]
[1732376163611,0.7124864,3470.1,3468.4,0.8004]
[1732376163965,0.8286,3470.9,3468.4,0.8004]
[1732376164897,0.55,3470.8,3468.4,0.8004]
[1732376166019,1.52328894,3470.9,3468.4,0.8004]
[1732376166703,0.8209,3470.8,3468.4,0.8004]
[1732376167287,1.3709,3470.7,3468.4,0.8004]
[1732376167491,0.55,3470.5,3468.4,0.8004]
[1732376167689,0.55,3470.3,3468.4,0.8004]
[1732376168568,0.55,3470.3,3467.8,0.2872]
[1732376168794,0.55,3470.3,3468.1,0.8282]
[1732376169812,0.55,3470.4,3468.1,0.8282]
[1732376170015,0.8101,3470.3,3468.1,0.8282]
[1732376170181,0.55,3470.2,3468.1,0.8282]
[1732376171226,0.8101,3470.3,3468.1,0.8282]
[1732376171386,0.8101,3469.9,3468.1,0.8282]
[1732376171574,0.55,3469.8,3468.1,0.8282]
[1732376173420,0.8101,3469.7,3468.1,0.8282]
[1732376173623,0.55,3469.6,3468.1,0.8282]
[1732376174280,0.55,3469.4,3468.1,0.8282]
[1732376176315,8.87,3470.1,3468.1,0.8282]
[1732376176316,0.8101,3469.9,3468.1,0.8282]
[1732376176557,8.87,3470.1,3468.2,0.0288296]
[1732376176681,0.8101,3470.9,3468.3,0.7616]
[1732376176883,8.87,3470.8,3468.3,0.7616]
[1732376177092,0.8101,3470.7,3468.3,0.7616]
[1732376177827,0.8101,3470.5,3468.3,0.7616]
[1732376178032,0.55,3470.2,3468.3,0.7616]
[1732376178435,0.8101,3470.3,3468.3,0.7616]
[1732376178787,0.8101,3470.3,3468.4,0.7616]
[1732376178994,0.21702,3470.4,3468.5,0.79042858]
[1732376179302,11.87,3470.5,3468.5,0.7616]
[1732376181191,12.56176171,3470.5,3468.5,0.7616]
[1732376181396,0.69176171,3470.5,3468.6,0.0288265]
[1732376181698,0.8201,3471.0,3468.8,0.8112]
[1732376181899,0.8201,3471.0,3469.0,0.8112]
[1732376183732,0.55,3470.9,3469.0,0.8112]
[1732376184078,0.55,3470.7,3469.0,0.8112]
[1732376184344,0.55,3470.3,3469.0,0.8112]
[1732376184829,3.0,3470.4,3469.0,0.8112]
[1732376185497,0.7764,3470.2,3469.0,0.0673423]
[1732376185697,0.37764,3470.1,3469.0,0.0673423]
[1732376187236,0.55,3470.0,3469.0,0.0673423]
[1732376188334,0.7764,3469.9,3469.0,0.0673423]
[1732376188543,0.55,3469.8,3467.2,0.8233]
[1732376188853,0.55,3469.8,3467.4,0.8233]
[1732376189301,0.55,3469.8,3467.6,0.8233]
[1732376190321,1.25468902,3469.8,3467.6,0.8233]
[1732376190646,0.55,3469.6,3467.6,0.8233]
[1732376191101,0.43203053,3469.7,3467.6,0.8233]
[1732376191944,3.43203053,3469.7,3467.6,0.8233]
[1732376193307,3.43203053,3469.7,3467.7,0.55]
[1732376193644,0.52637568,3469.6,3467.8,0.7968]
[1732376193805,0.52637568,3469.6,3467.9,0.7968]
[1732376193999,1.49146143,3469.9,3467.9,0.7968]
[1732376194000,0.43203053,3469.5,3467.9,0.7968]
[1732376194340,0.55,3469.8,3467.9,0.7968]
[1732376196231,3.0,3469.7,3467.9,0.7968]
[1732376197602,0.7733,3469.6,3467.9,0.7968]
[1732376201156,0.7733,3470.3,3468.1,0.7968]
[1732376201437,0.55,3470.2,3468.1,0.7968]
[1732376203758,0.55,3470.2,3468.2,0.7968]
[1732376205459,0.55,3470.0,3468.2,0.7968]
[1732376205645,0.7629,3470.1,3468.2,0.7968]
[1732376205646,0.18629,3469.9,3468.2,0.7968]
[1732376210661,0.90089927,3469.9,3468.2,0.7968]
[1732376210830,0.55,3470.2,3468.2,0.7968]
[1732376211272,0.55,3470.3,3468.2,0.7968]
[1732376212140,0.69560147,3470.3,3468.4,0.8177]
[1732376212329,11.11071937,3471.2,3468.8,0.8177]
[1732376212531,2.24071937,3471.2,3468.8,0.8177]
[1732376212727,0.22407194,3471.1,3468.8,0.8177]
[1732376213161,1.65952889,3471.1,3468.8,0.8177]
[1732376213871,1.99014351,3471.0,3468.9,0.8177]
[1732376216568,1.44014351,3471.0,3468.9,0.8177]
[1732376216760,1.44014351,3471.0,3469.1,0.8177]
[1732376216944,1.67787923,3471.0,3469.3,0.8177]
[1732376217142,1.67787923,3471.0,3469.5,0.8177]
[1732376217383,1.48170603,3470.8,3469.6,0.02881751]
[1732376217681,1.47822077,3472.0,3469.7,0.8177]
[1732376219137,8.87,3472.4,3469.9,0.8177]
[1732376219138,1.47923428,3472.3,3469.9,0.8177]
[1732376219336,1.47923428,3472.3,3470.1,0.8177]
[1732376219737,1.45869064,3472.1,3470.1,0.8177]
[1732376220269,0.55,3472.0,3470.1,0.8177]
[1732376220579,0.7816,3471.7,3470.1,0.8177]
[1732376220764,1.45911937,3471.2,3470.1,0.8177]
[1732376220975,0.7816,3471.7,3470.1,0.8177]
[1732376220976,1.97633395,3470.9,3470.1,0.8177]
[1732376222371,3.0,3470.8,3470.1,0.8177]
[1732376222940,0.55,3470.7,3470.1,0.8177]
[1732376225179,0.55,3470.7,3470.5,0.0105066]
[1732376225674,0.55,3470.7,3467.7,0.02882278]
[1732376225880,0.55,3470.5,3467.7,0.02882278]
[1732376226082,0.55,3470.3,3467.6,0.02882818]
[1732376226289,0.55,3470.3,3467.5,0.02552064]
[1732376226786,0.55,3470.1,3467.5,0.02552064]
[1732376227085,3.0,3470.2,3467.5,0.02552064]
[1732376227086,0.55,3469.9,3467.5,0.02552064]
[1732376228393,3.30809144,3470.0,3467.6,0.57883084]
[1732376228556,0.65031477,3469.9,3467.6,0.57883084]
[1732376228896,0.65031477,3469.9,3467.9,0.7508]
[1732376230183,1.3245,3469.8,3467.9,0.7508]
[1732376230752,1.3245,3469.8,3468.9,0.033955]
[1732376231610,1.3245,3469.8,3469.0,0.769]
[1732376231889,0.19748148,3469.7,3469.0,0.769]
[1732376232394,0.71538414,3469.8,3469.0,0.769]
[1732376232604,3.0,3470.1,3469.0,0.769]
[1732376233174,3.69735453,3470.1,3469.0,0.769]
[1732376234212,1.42633395,3470.9,3468.9,0.033955]
[1732376234213,0.55,3469.8,3468.9,0.033955]
[1732376236473,0.55,3469.6,3468.9,0.033955]
[1732376238312,0.7636,3470.3,3469.0,0.7655]
[1732376238520,0.37636,3470.2,3469.0,0.7655]
[1732376239516,0.7636,3470.1,3469.0,0.7655]
[1732376239822,0.55,3470.0,3469.0,0.7655]
[1732376241056,0.37636,3470.2,3469.0,0.7655]
[1732376241222,0.7636,3470.7,3469.0,0.7655]
[1732376242749,0.55,3470.6,3469.0,0.7655]
[1732376242916,0.55,3470.3,3468.9,0.033955]
[1732376243106,0.7636,3470.0,3468.9,0.033955]
[1732376243309,0.7636,3469.8,3468.9,0.033955]
[1732376243517,0.55,3469.7,3468.9,0.033955]
[1732376245159,0.55,3469.3,3468.2,0.7788]
[1732376245450,0.55,3469.1,3467.6,0.7788]
[1732376246215,0.55,3468.9,3467.6,0.7788]
[1732376246423,0.55,3468.9,3467.7,0.21448929]
[1732376246720,0.55,3468.9,3467.8,0.21448929]
[1732376247053,0.55,3468.9,3467.9,0.21448929]
[1732376247222,0.55,3468.9,3467.6,0.7788]
[1732376247223,0.55,3468.9,3468.0,0.21448929]
[1732376247427,0.55,3468.9,3468.1,0.21448929]
[1732376247628,0.55,3468.9,3468.2,0.21448929]
[1732376247945,0.55,3468.9,3468.3,0.21448929]
[1732376248145,0.55,3468.9,3468.4,0.21448929]
[1732376248352,0.55,3468.9,3468.5,0.21448929]
[1732376248553,0.55,3468.9,3467.6,0.7788]
[1732376248861,0.55,3468.9,3467.7,0.2145487]
[1732376249033,1.25015586,3468.9,3467.8,0.2145487]
[1732376249232,0.20376559,3468.8,3467.9,0.21454765]
[1732376249557,0.20376559,3468.8,3468.0,0.21454765]
[1732376249730,0.15412656,3468.7,3468.1,0.21454765]
[1732376249932,0.7669,3468.6,3468.2,0.21454765]
[1732376250145,0.7669,3468.6,3467.6,0.7788]
[1732376250146,0.7669,3468.6,3468.3,0.21454765]
[1732376250321,0.7669,3468.6,3467.6,0.7788]
[1732376250654,0.7669,3468.6,3467.7,0.21470399]
[1732376250828,0.7669,3468.6,3467.8,0.21470399]
[1732376251038,0.91400266,3468.6,3467.9,0.21470399]
[1732376251243,0.7669,3468.6,3468.0,0.21470399]
[1732376251457,1.45615414,3469.0,3468.1,1.02090399]
[1732376251707,0.7669,3469.3,3468.2,0.21470399]
[1732376251829,0.7669,3469.3,3468.3,0.21470399]
[1732376252029,0.7669,3469.3,3468.4,0.21470399]
[1732376252241,0.7669,3469.3,3468.1,0.8062]
[1732376252242,0.7669,3469.3,3468.5,0.21470399]
[1732376252445,0.7669,3469.3,3468.6,0.21470399]
[1732376252653,0.7669,3469.3,3468.7,0.21470399]
[1732376252867,1.48147018,3469.3,3468.8,0.21470399]
[1732376253161,0.14814702,3469.2,3468.1,0.8062]
[1732376254219,0.14814702,3469.2,3468.9,0.00856284]
[1732376261373,0.55,3469.1,3468.1,0.7735]
[1732376261577,0.21796172,3469.0,3468.1,0.7735]
[1732376262572,1.48147018,3469.3,3468.1,0.7735]
[1732376263167,0.71457018,3469.3,3468.1,0.7735]
[1732376263348,0.7894,3469.6,3468.1,0.7735]
[1732376263774,1.49298105,3469.6,3468.3,0.7735]
[1732376264457,0.14929811,3469.5,3468.3,0.7735]
[1732376264657,0.70358105,3469.6,3468.3,0.7735]
[1732376264957,0.7894,3469.9,3468.3,0.7735]
[1732376265168,1.44710959,3470.4,3468.5,0.7735]
[1732376265369,1.44710959,3470.4,3468.7,0.7735]
[1732376265557,1.43304143,3470.2,3468.7,0.7735]
[1732376265739,1.44710959,3470.4,3468.7,0.7735]
[1732376266777,4.44710959,3470.4,3468.7,0.7735]
[1732376267349,1.43304143,3470.2,3468.7,0.7735]
[1732376267552,1.49565227,3470.3,3468.7,0.7735]
[1732376269187,0.809,3470.2,3468.7,0.7735]
[1732376269388,1.46711244,3470.1,3468.7,0.7735]
[1732376269678,1.68559061,3470.0,3468.7,0.7735]
[1732376269895,1.46711244,3470.1,3468.7,0.7735]
[1732376270574,2.26697937,3470.0,3468.7,0.7735]
[1732376270767,0.22669794,3469.9,3468.7,0.7735]
[1732376272956,0.809,3470.3,3468.7,0.7735]
[1732376273267,1.43304143,3470.2,3468.7,0.7735]
[1732376273465,0.809,3470.1,3468.7,0.7735]
[1732376273690,1.68218351,3470.0,3468.7,0.7735]
[1732376273858,1.45797937,3470.0,3468.7,0.7735]
[1732376275769,1.45797937,3470.0,3468.7,0.756595]
[1732376276804,5.16188364,3470.0,3468.7,0.756595]
[1732376278904,2.16188364,3470.0,3468.8,0.7893]
[1732376279086,1.49565227,3470.3,3468.8,0.7893]
[1732376279282,1.46711244,3470.1,3468.8,0.7893]
[1732376279622,2.19501478,3470.3,3469.0,0.7893]
[1732376279822,1.44014351,3471.0,3469.1,0.81812034]
[1732376279994,1.44014351,3471.0,3469.2,0.95483203]
[1732376280193,1.44014351,3471.0,3469.2,0.7893]
[1732376280395,1.44014351,3471.0,3469.3,0.55]
[1732376280599,1.44014351,3471.0,3469.4,0.7893]
[1732376281113,1.48735682,3471.3,3469.5,0.57881645]
[1732376281281,1.48735682,3471.3,3469.8,0.7893]
[1732376281482,1.41864055,3472.2,3469.9,0.02881411]
[1732376281710,1.41864055,3472.2,3469.8,1.2e-07]
[1732376281711,1.41864055,3472.2,3469.8,0.28720012]
[1732376282216,0.7876,3472.3,3469.8,0.28720012]
[1732376282425,1.45869064,3472.1,3469.8,0.28720012]
[1732376282606,1.43724586,3471.7,3469.8,0.28720012]
[1732376282799,1.43724586,3471.7,3469.8,1.2e-07]
[1732376282997,0.7876,3471.3,3469.8,1.2e-07]
[1732376283190,1.45911937,3471.2,3469.8,1.2e-07]
[1732376283391,1.44014351,3471.0,3469.8,1.2e-07]
[1732376283895,1.43401931,3471.1,3469.8,1.2e-07]
[1732376284110,1.48780338,3470.9,3469.8,1.2e-07]
[1732376284296,1.4250166,3470.7,3469.8,1.2e-07]
[1732376284515,0.7876,3471.3,3469.8,1.2e-07]
[1732376284516,1.42642562,3471.0,3469.8,1.2e-07]
[1732376284713,0.55,3471.0,3469.8,1.2e-07]
[1732376285019,1.98620531,3470.9,3469.8,1.2e-07]